{"text_format":"1","workbook":"xlsx","n_sheets":2,"sheets":["Teilnehmer","Wertungspunkte"],"not_rendered":{"charts":0,"images":1,"macros":1,"external_links":1,"defined_names":2,"comments":0,"pivot_tables":0},"unopened":[],"bounds":{"document_bytes":16777216,"sheet_cells":100000,"rows_first":2000,"rows_last":500,"rows_between":2000,"halvings":0,"cell_chars":16384,"cell_head_chars":4096},"cells_cut":0,"cells_raw":0,"read":"whole","date_system":"1900"}

{"sheet":"Teilnehmer","index":0,"n_rows":11,"n_cols":193,"rows_kept":11,"cut":false,"hidden":false,"merged":[]}
["TN-Nr","Fahrer-Nname","Vorname","PLZ",null,null,null,null,null,null,null,null,null,null,null,null,null,null,null,null,null,null,null,null,null,null,null,null,null,null,null,null,null,null,null,null,null,null,null,null,null,null,null,null,null,null,null,null,null,null,null,null,null,null,null,null,null,null,null,null,null,null,null,null,null,null,null,null,null,null,null,null,null,null,null,null,null,null,null,null,null,null,null,null,null,null,null,null,null,null,null,null,null,null,null,null,null,null,null,null,null,null,null,null,null,null,null,null,null,null,null,null,null,null,null,null,null,null,null,null,null,null,null,null,null,null,null,null,null,null,null,null,null,null,null,null,null,null,null,null,null,null,null,null,null,null,null,null,null,null,null,null,null,null,null,null,null,null,null,null,null,null,null,null,null,null,null,null,null,null,null,null,null,null,null,null,null,null,null,null,null,null,null,null,null,null,null,null,null,null,null,null,14]
[1,"Wolfgruber","Rüdiger","A-2700"]
[2,"Pöppel","Karl-Heinz","79199"]
[3,"Misch","Christof",60389]
[4,"Schmitter","Bernd","51503"]
[5,"Merx","Ulrich",41063]
[6,"Hack","Dr. Christoph",50354]
[7,"Hasse","Dirk",13465]
[8,"Hollenbenders","Uwe",41334]
[9,"Künzler","Rainer","44329"]
[10,"Viehweger","Ralf",79664]

{"sheet":"Wertungspunkte","index":1,"n_rows":11,"n_cols":178,"rows_kept":11,"cut":false,"hidden":false,"merged":[]}
["Startnummer","Name","Minuten","HK1","NK1.1","NK1.2","NK1.3","NK1.4",null,null,null,null,null,null,null,null,null,null,null,null,null,null,null,null,null,null,null,null,null,null,null,null,null,null,null,null,null,null,null,null,null,null,null,null,null,null,null,null,null,null,null,null,null,null,null,null,null,null,null,null,null,null,null,null,null,null,null,null,null,null,null,null,null,null,null,null,null,null,null,null,null,null,null,null,null,null,null,null,null,null,null,null,null,null,null,null,null,null,null,null,null,null,null,null,null,null,null,null,null,null,null,null,null,null,null,null,null,null,null,null,null,null,null,null,null,null,null,null,null,null,null,null,null,null,null,null,null,null,null,null,null,null,null,null,null,null,null,null,null,null,null,null,null,null,null,null,null,null,null,null,null,null,null,null,null,null,null,null,null,null,null,null,null,null,null,null,null,504]
[{"$f":"[1]Teilnehmer!A2","v":1},{"$f":"VLOOKUP(A2,[1]Teilnehmer!A2:C96,2)","v":"Wolfgruber"},null,{"$f":"IFERROR(_xlfn.IFS(E2>0,1,F2>0,1,G2>0,1,H2>0,1),\"0\")","v":"0"}]
[{"$f":"[1]Teilnehmer!A3","v":2},{"$f":"VLOOKUP(A3,[1]Teilnehmer!A3:C105,2)","v":"Pöppel"},null,"0"]
[{"$f":"[1]Teilnehmer!A4","v":3},{"$f":"VLOOKUP(A4,[1]Teilnehmer!A4:C108,2)","v":"Misch"},null,"0"]
[{"$f":"[1]Teilnehmer!A5","v":4},{"$f":"VLOOKUP(A5,[1]Teilnehmer!A5:C107,2)","v":"Schmitter"},null,1,0,3,3,3]
[{"$f":"[1]Teilnehmer!A6","v":5},{"$f":"VLOOKUP(A6,[1]Teilnehmer!A6:C108,2)","v":"Merx"},null,"0"]
[{"$f":"[1]Teilnehmer!A7","v":6},{"$f":"VLOOKUP(A7,[1]Teilnehmer!A7:C109,2)","v":"Hack"},null,1,0,3,2,3]
[{"$f":"[1]Teilnehmer!A8","v":7},{"$f":"VLOOKUP(A8,[1]Teilnehmer!A8:C110,2)","v":"Hasse"},null,1,2,3,3,3]
[{"$f":"[1]Teilnehmer!A9","v":8},{"$f":"VLOOKUP(A9,[1]Teilnehmer!A9:C111,2)","v":"Hollenbenders"},null,1,0,3,3,3]
[{"$f":"[1]Teilnehmer!A10","v":9},{"$f":"VLOOKUP(A10,[1]Teilnehmer!A10:C112,2)","v":"Künzler"},null,"0"]
[{"$f":"[1]Teilnehmer!A11","v":10},{"$f":"VLOOKUP(A11,[1]Teilnehmer!A11:C113,2)","v":"Viehweger"},null,"0"]